bitfinex/quotes_BTCUSD_20241124
["timestamp","ask_amount","ask_price","bid_price","bid_amount"]
[1732464742921,0.023,95995.0,95993.0,0.083339]
[1732464743138,0.023,95995.0,95992.0,0.00933279]
[1732464743139,0.12501427,95995.0,95992.0,0.00933279]
[1732464743358,0.12501427,95995.0,95994.0,0.083338]
[1732464744229,0.023,95995.0,95994.0,0.09267079]
[1732464744455,0.0017142,95996.0,95995.0,0.09266979]
[1732464745343,0.0017142,95996.0,95995.0,0.21496979]
[1732464748464,0.0017142,95996.0,95995.0,0.21601137]
[1732464749782,0.0017142,95996.0,95995.0,0.31802564]
[1732464749993,0.0017142,95996.0,95995.0,0.31698406]
[1732464750221,0.023,96029.0,96028.0,0.083309]
[1732464750480,1.02815,96030.0,96029.0,0.09264079]
[1732464750687,1.02815,96030.0,96029.0,0.11898365]
[1732464751812,1.02815,96030.0,96029.0,0.13482207]
[1732464752453,1.02815,96030.0,96029.0,0.083308]
[1732464752454,1.05115,96030.0,96029.0,0.083308]
[1732464752668,1.05115,96030.0,96029.0,0.09264079]
[1732464757109,1.0528642,96030.0,96029.0,0.09264079]
[1732464761678,1.0528642,96030.0,96028.0,0.00933279]
[1732464761679,0.023,96029.0,96028.0,0.00933279]
[1732464761914,0.12501427,96029.0,96018.0,0.00933279]
[1732464762127,0.023,96025.0,96018.0,0.00933279]
[1732464762370,1.60201427,96028.0,96018.0,0.00933279]
[1732464762371,0.023,96022.0,96018.0,0.00933279]
[1732464762608,0.22915727,96022.0,96018.0,0.00933279]
[1732464762825,0.12501427,96022.0,96018.0,0.00933279]
[1732464763294,0.12501427,96022.0,96019.0,0.083316]
[1732464763507,0.12501427,96022.0,96018.0,0.00933279]
[1732464763952,0.12501427,96022.0,96018.0,0.09264979]
[1732464764390,0.12501427,96022.0,96018.0,0.00933279]
[1732464764633,1.2381342,96030.0,96005.0,0.00933279]
[1732464764634,0.104154,96012.0,96005.0,0.00933279]
[1732464764847,0.104154,96012.0,95993.0,0.0468]
[1732464764848,0.023,96011.0,96008.0,0.00933279]
[1732464765082,0.023,96011.0,96000.0,0.00933279]
[1732464765083,0.10201427,96010.0,96000.0,0.00933279]
[1732464765302,0.10201427,96010.0,95997.0,0.00933279]
[1732464765303,0.023,96004.0,95997.0,0.00933279]
[1732464765516,0.023,96004.0,95985.0,0.083346]
[1732464765517,0.023,95995.0,95991.0,0.00933279]
[1732464765749,0.023,95995.0,95979.0,0.0468]
[1732464765750,0.023,95998.0,95993.0,0.00933279]
[1732464765986,0.25169769,96003.0,95979.0,0.0468]
[1732464765987,0.104173,95994.0,95979.0,0.0468]
[1732464766206,0.023,95993.0,95992.0,0.00933279]
[1732464766423,0.023,95996.0,95985.0,0.00933279]
[1732464766675,0.12501427,95992.0,95986.0,0.00933279]
[1732464766894,0.12501427,95992.0,95983.0,0.0842041]
[1732464766895,0.023,96001.0,95991.0,0.00933279]
[1732464767118,0.10201427,96000.0,95992.0,0.00933279]
[1732464767384,0.023,95996.0,95992.0,0.00933279]
[1732464767599,0.023,95994.0,95992.0,0.00933279]
[1732464768757,0.023,95994.0,95993.0,0.083339]
[1732464769245,0.208292,96019.0,96010.0,0.083324]
[1732464769246,0.15,96019.0,96010.0,0.083324]
[1732464769464,0.10201427,96015.0,96009.0,0.083325]
[1732464769678,0.10201427,96015.0,96010.0,0.083324]
[1732464769905,0.10201427,96015.0,96011.0,0.083323]
[1732464770163,0.10201427,96015.0,96008.0,0.09265779]
[1732464770377,0.10201427,96015.0,96008.0,0.00933279]
[1732464770634,0.023,96014.0,96010.0,0.083324]
[1732464770862,0.023,96012.0,96008.0,0.00933279]
[1732464771084,0.12501427,96012.0,96010.0,0.083324]
[1732464771328,0.12501427,96012.0,96008.0,0.00933279]
[1732464772200,0.12501427,96012.0,96009.0,0.083324]
[1732464772424,0.12501427,96012.0,96010.0,0.083323]
[1732464772660,0.12501427,96012.0,95997.0,0.083335]
[1732464772661,1.0298642,96030.0,96019.0,0.00933279]
[1732464772890,1.0298642,96030.0,96003.0,0.0814]
[1732464772891,0.10201427,96029.0,96023.0,0.00933279]
[1732464773102,1.0298642,96030.0,96029.0,0.083308]
[1732464774237,1.0528642,96030.0,96029.0,0.083308]
[1732464774471,0.023,96029.0,96027.0,0.00933279]
[1732464774707,0.023,96029.0,96027.0,0.09264179]
[1732464774919,0.023,96029.0,96027.0,0.00933279]
[1732464777686,1.0528642,96030.0,96029.0,0.09264079]
[1732464779752,1.0298642,96030.0,96029.0,0.09264079]
[1732464780682,1.0298642,96030.0,96029.0,0.12191661]
[1732464781132,1.0298642,96030.0,96029.0,0.09264079]
[1732464782627,1.0298642,96030.0,96029.0,0.50444645]
[1732464783544,1.0298642,96030.0,96029.0,0.50440739]
[1732464784651,1.0298642,96030.0,96029.0,0.09264079]
[1732464789114,0.9308642,96030.0,96029.0,0.09264079]
[1732464791057,0.023,96029.0,96028.0,0.27903753]
[1732464791299,0.023,96029.0,96018.0,0.45440537]
[1732464791300,0.023,96024.0,96023.0,0.00933279]
[1732464791768,0.231283,96023.0,96017.0,0.00933279]
[1732464792018,0.023,96017.0,96012.0,0.27903753]
[1732464792275,0.023,96017.0,96013.0,0.00933279]
[1732464792476,0.208285,96022.0,96012.0,0.083322]
[1732464792477,0.023,96015.0,96012.0,0.083322]
[1732464792684,0.023,96015.0,96011.0,0.00933279]
[1732464792685,0.023,96013.0,96011.0,0.00933279]
[1732464792905,0.023,96013.0,96012.0,0.27916449]
[1732464793186,0.023,96013.0,96012.0,0.37181928]
[1732464793407,0.023,96013.0,96012.0,0.09265479]
[1732464793833,0.023,96022.0,96012.0,0.37182894]
[1732464794051,0.023,96016.0,96012.0,0.27917415]
[1732464794277,0.023,96016.0,96015.0,0.00933279]
[1732464794461,0.023,96020.0,96015.0,0.00933279]
[1732464794777,0.023,96020.0,96016.0,0.083318]
[1732464794999,0.023,96020.0,96019.0,0.083316]
[1732464795222,0.023,96020.0,96018.0,0.00933279]
[1732464795695,0.023,96020.0,96018.0,0.09264979]
[1732464795919,0.023,96020.0,96019.0,0.083316]
[1732464796404,0.023,96020.0,96018.0,0.00933279]
[1732464796635,0.023,96020.0,96019.0,0.083316]
[1732464797123,0.023,96020.0,96019.0,0.09264879]
[1732464797352,0.023,96026.0,96023.0,0.00933279]
[1732464797588,0.12501427,96026.0,96023.0,0.00933279]
[1732464797818,0.023,96024.0,96023.0,0.00933279]
[1732464798047,0.023,96025.0,96023.0,0.00933279]
[1732464799172,0.023,96025.0,96023.0,0.09264579]
[1732464799458,0.023,96025.0,96023.0,0.00933279]
[1732464799706,0.023,96025.0,96024.0,0.083312]
[1732464799946,0.023,96029.0,96028.0,0.09264179]
[1732464800192,0.9308642,96030.0,96029.0,0.083308]
[1732464801306,0.9538642,96030.0,96029.0,0.083308]
[1732464801528,0.9308642,96030.0,96029.0,0.09264079]
[1732464802864,0.9538642,96030.0,96029.0,0.00933279]
[1732464803098,0.023,96029.0,96028.0,0.00933279]
[1732464803545,0.023,96029.0,96028.0,0.09264179]
[1732464804628,0.023,96029.0,96028.0,0.00933279]
[1732464804872,0.023,96029.0,96028.0,0.09264179]
[1732464805088,0.023,96029.0,96028.0,0.37184393]
[1732464805306,0.023,96029.0,96028.0,0.09264179]
[1732464806729,0.023,96029.0,96028.0,0.37184393]
[1732464806942,0.95176507,96030.0,96029.0,0.09264079]
[1732464808767,0.95126155,96030.0,96029.0,0.09264079]
[1732464808980,0.95126155,96030.0,96029.0,0.13484128]
[1732464809208,0.93036068,96030.0,96029.0,0.13484128]
[1732464809427,0.93036068,96030.0,96029.0,0.25914128]
[1732464814114,0.93036068,96030.0,96029.0,0.51115555]
[1732464814329,0.93036068,96030.0,96029.0,0.71115555]
[1732464814540,0.93036068,96030.0,96029.0,0.94560159]
[1732464814764,0.93036068,96030.0,96029.0,0.91115555]
[1732464815012,0.93036068,96030.0,96029.0,0.94560159]
[1732464815240,0.93036068,96030.0,96029.0,0.91315555]
[1732464817276,0.82622568,96030.0,96029.0,0.91315555]
[1732464817517,0.63680202,96030.0,96029.0,0.91315555]
[1732464817747,0.63680202,96030.0,96029.0,0.94760159]
[1732464818421,0.53266702,96030.0,96029.0,0.94760159]
[1732464818649,0.53266702,96030.0,96029.0,0.91315555]
[1732464819091,0.45144317,96030.0,96029.0,0.91315555]
[1732464819302,0.43061617,96030.0,96029.0,0.91315555]
[1732464819509,0.38582808,96030.0,96029.0,0.91315555]
[1732464819717,0.34417408,96030.0,96029.0,0.91315555]
[1732464819928,0.19516412,96030.0,96029.0,0.93543134]
[1732464820406,0.14144016,96030.0,96029.0,0.96744705]
[1732464820428,0.06334016,96030.0,96029.0,0.96744705]
[1732464820675,1.6e-07,96030.0,96029.0,1.25935343]
[1732464820880,0.0017148,96049.0,96048.0,0.64802379]
[1732464821133,0.0017148,96049.0,96048.0,0.75003806]
[1732464821367,0.0017148,96049.0,96048.0,0.74803806]
[1732464821781,0.0017148,96049.0,96048.0,0.75003806]
[1732464823737,0.0017148,96049.0,96048.0,0.79255733]
[1732464825398,8e-07,96049.0,96048.0,0.79255733]
[1732464830323,0.0008563,96070.0,96066.0,0.35933279]
[1732464830569,0.0008563,96070.0,96066.0,0.53621306]
[1732464830773,0.0008563,96070.0,96066.0,0.53421306]
[1732464831917,4e-07,96067.0,96066.0,0.73421306]
[1732464832359,4e-07,96067.0,96066.0,0.77539442]
[1732464832581,4e-07,96067.0,96066.0,0.77739442]
[1732464837416,0.0017158,96083.0,96070.0,0.63419579]
[1732464837417,5e-07,96071.0,96070.0,0.63419579]
[1732464837621,0.0017158,96083.0,96070.0,0.63419579]
[1732464837622,3e-07,96074.0,96073.0,0.63419379]
[1732464837842,3e-07,96074.0,96073.0,0.73620806]
[1732464838533,3e-07,96077.0,96076.0,0.56133279]
[1732464838748,3e-07,96077.0,96076.0,0.73620506]
[1732464839622,0.0017158,96083.0,96082.0,0.63418679]
[1732464839623,3e-07,96083.0,96082.0,0.63418679]
[1732464839862,3e-07,96083.0,96082.0,0.73620106]
[1732464842258,0.0637639,96105.0,96104.0,0.08216979]
[1732464844027,0.0637639,96105.0,96104.0,0.12408691]
[1732464844240,0.0637639,96105.0,96104.0,0.05124991]
[1732464844486,0.0637639,96105.0,96104.0,0.00933279]
[1732464844487,0.1111639,96105.0,96104.0,0.00933279]
[1732464844702,0.2152159,96105.0,96104.0,0.00933279]
[1732464845125,1.5,96108.0,96082.0,0.27776118]
[1732464845126,0.104055,96103.0,96102.0,0.00933279]
[1732464845384,0.234055,96103.0,96102.0,0.00933279]
[1732464845599,0.234055,96103.0,96085.0,0.072851]
[1732464845600,0.104061,96097.0,96096.0,0.00933279]
[1732464846043,0.234061,96097.0,96096.0,0.00933279]
[1732464846730,0.10407,96089.0,96076.0,0.072858]
[1732464846943,0.10407,96089.0,96077.0,0.072858]
[1732464847140,0.104077,96083.0,96076.0,0.04253312]
[1732464847381,0.208144,96087.0,96076.0,0.04253312]
[1732464847593,0.208144,96087.0,96070.0,0.072863]
[1732464847594,0.0468,96082.0,96064.0,0.35069644]
[1732464847799,0.208146,96086.0,96070.0,0.072863]
[1732464847800,0.0769,96079.0,96070.0,0.072863]
[1732464848006,0.0769,96077.0,96064.0,0.04171038]
[1732464848220,0.0769,96077.0,96066.0,0.072866]
[1732464848644,0.104084,96076.0,96063.0,0.04235169]
[1732464848866,0.104084,96076.0,96057.0,0.27782944]
[1732464848867,0.180983,96077.0,96065.0,0.072866]
[1732464849088,0.180983,96077.0,96067.0,0.072865]
[1732464849296,0.104084,96076.0,96066.0,0.15]
[1732464849516,0.0769,96077.0,96066.0,0.15]
[1732464849753,0.104084,96076.0,96066.0,0.222866]
[1732464849967,0.104085,96075.0,96066.0,0.15]
[1732464850185,0.0769,96077.0,96062.0,0.15]
[1732464850398,0.104086,96074.0,96064.0,0.072867]
[1732464850601,0.0769,96073.0,96065.0,0.15]
[1732464850835,0.0769,96073.0,96066.0,0.072866]
[1732464851109,0.0769,96073.0,96058.0,0.35070144]
[1732464851321,0.208171,96075.0,96057.0,0.11597992]
[1732464851322,0.0769,96069.0,96057.0,0.11597992]
[1732464851531,0.0769,96069.0,96055.0,0.27782944]
[1732464851532,0.208185,96068.0,96055.0,0.35070344]
[1732464851753,0.0769,96063.0,96054.0,0.072875]
[1732464852243,0.0769,96063.0,96055.0,0.072874]
[1732464852500,0.0769,96063.0,96057.0,0.15]
[1732464852725,0.0468,96062.0,96055.0,0.42782944]
[1732464852947,0.0468,96062.0,96056.0,0.27782944]
[1732464853165,0.0468,96062.0,96058.0,0.072872]
[1732464853386,0.0468,96062.0,96056.0,0.27782944]
[1732464853619,0.0468,96062.0,96058.0,0.27782944]
[1732464854073,0.0468,96062.0,96058.0,0.35070144]
[1732464854283,0.0468,96062.0,96058.0,0.27782944]
[1732464854515,0.0468,96062.0,96061.0,0.07287]
[1732464854724,0.0468,96062.0,96061.0,0.35069944]
[1732464854964,0.0468,96062.0,96061.0,0.07287]
[1732464855169,0.0468,96062.0,96061.0,0.2787319]
[1732464855396,0.0468,96062.0,96058.0,0.2787319]
[1732464856063,0.0468,96062.0,96059.0,0.2787319]
[1732464856287,0.0468,96062.0,96057.0,0.2787319]
[1732464856499,0.1509,96062.0,96057.0,0.2787319]
[1732464856941,0.104102,96059.0,96058.0,0.2787319]
[1732464857164,0.0769,96059.0,96056.0,0.2787319]
[1732464857409,0.104104,96058.0,96056.0,0.2787319]
[1732464857616,0.0769,96059.0,96055.0,0.2787319]
[1732464857832,0.0769,96059.0,96050.0,0.072878]
[1732464857833,0.104105,96057.0,96054.0,0.2787319]
[1732464858039,0.181003,96059.0,96054.0,0.2787319]
[1732464858274,0.104107,96055.0,96054.0,0.2787319]
[1732464858474,0.208211,96056.0,96054.0,0.2787319]
[1732464858716,0.227808,96054.0,96050.0,0.2787319]
[1732464858947,0.10411,96052.0,96048.0,0.2795879]
[1732464859155,0.1237,96054.0,96048.0,0.2795879]
[1732464859156,0.104109,96053.0,96048.0,0.2795879]
[1732464859385,0.227808,96054.0,96049.0,0.2787319]
[1732464859601,0.104109,96053.0,96049.0,0.2787319]
[1732464860053,0.1237,96054.0,96048.0,0.2795879]
[1732464860280,0.227808,96054.0,96048.0,0.2795879]
[1732464860500,0.3080079,96060.0,96034.0,0.41023254]
[1732464860501,0.208229,96048.0,96034.0,0.41023254]
[1732464860703,0.208229,96048.0,95995.0,0.002]
[1732464860704,0.1237,96030.0,96007.0,0.61023254]
[1732464860910,0.227834,96030.0,96022.0,0.04256973]
[1732464861368,0.227834,96030.0,96015.0,0.072904]
[1732464861587,0.227834,96030.0,96020.0,0.145802]
[1732464861808,0.227834,96030.0,96020.0,0.15]
[1732464862037,0.227834,96030.0,96020.0,0.222901]
[1732464862263,0.227834,96030.0,96027.0,0.072895]
[1732464862264,0.1237,96030.0,96027.0,0.072895]
[1732464862492,0.1237,96030.0,96020.0,0.15]
[1732464862934,0.1237,96030.0,96026.0,0.072896]
[1732464863152,0.1237,96030.0,96020.0,0.15]
[1732464863360,0.1237,96030.0,96023.0,0.072898]
[1732464863584,0.1237,96030.0,96025.0,0.072897]
[1732464863824,0.1237,96030.0,96024.0,0.072897]
[1732464864046,0.1237,96030.0,96023.0,0.145797]
[1732464864278,0.227834,96030.0,96020.0,0.15]
[1732464864484,0.227834,96030.0,96019.0,0.04325283]
[1732464864485,0.227834,96030.0,96019.0,0.11615383]
[1732464864690,0.227834,96030.0,96020.0,0.222901]
[1732464864925,0.227834,96030.0,96020.0,0.15]
[1732464865599,0.227834,96030.0,96019.0,0.0008562]
[1732464867584,0.1237,96030.0,96019.0,0.0008562]
[1732464867825,0.1237,96030.0,96024.0,0.072897]
[1732464868465,0.14431083,96030.0,96022.0,0.072899]
[1732464868673,0.14431083,96030.0,96021.0,0.0729]
[1732464868918,0.24844483,96030.0,96019.0,0.0737582]
[1732464869145,0.24844483,96030.0,96019.0,0.0008562]
[1732464869604,0.2458405,96030.0,96019.0,0.0008562]
[1732464871563,0.2458405,96030.0,96019.0,0.0737572]
[1732464871806,0.2458405,96030.0,96019.0,0.0008562]
[1732464872496,0.1417065,96030.0,96019.0,0.0008562]
[1732464872730,0.2458405,96030.0,96019.0,0.0008562]
[1732464873191,0.2458405,96030.0,96020.0,0.072901]
[1732464873423,0.1417065,96030.0,96019.0,0.0008562]
[1732464873690,0.1417065,96030.0,96024.0,0.072897]
[1732464873691,0.1367065,96030.0,96024.0,0.072897]
[1732464874175,0.02061083,96030.0,96029.0,0.0737502]
[1732464874619,0.0753,96037.0,96029.0,0.0737502]
[1732464874837,0.179426,96037.0,96029.0,0.0737502]
[1732464875063,0.104127,96036.0,96029.0,0.0008562]
[1732464875300,0.104131,96033.0,96029.0,0.0008562]
[1732464875538,0.104129,96035.0,96029.0,0.0008562]
[1732464875777,0.104132,96032.0,96029.0,0.0008562]
[1732464876002,0.10413,96034.0,96029.0,0.0008562]
[1732464877632,0.10413,96034.0,96026.0,0.072896]
[1732464877851,0.1058424,96034.0,96026.0,0.072896]
[1732464879235,0.0017124,96034.0,96019.0,0.0008562]
[1732464879475,0.0998049,96030.0,96019.0,0.0008562]
[1732464879928,0.10414,96025.0,96019.0,0.0008562]
[1732464880154,0.208274,96027.0,96019.0,0.0008562]
[1732464880401,0.208279,96025.0,96019.0,0.0008562]
[1732464880638,0.104136,96028.0,96019.0,0.0008562]
[1732464880860,0.20827,96029.0,96019.0,0.0008562]
[1732464881089,0.104138,96026.0,96019.0,0.0008562]
[1732464881316,0.14278626,96030.0,96019.0,0.0008562]
[1732464881542,0.04298136,96030.0,96019.0,0.0008562]
[1732464881798,0.312391,96033.0,96023.0,0.072898]
[1732464882022,0.04437279,96034.0,96023.0,0.072898]
[1732464882242,0.04437279,96034.0,96023.0,0.072899]
[1732464882487,0.04437279,96034.0,96021.0,0.0729]
[1732464882967,0.04437279,96034.0,96026.0,0.072896]
[1732464883201,0.104131,96033.0,96026.0,0.072896]
[1732464883424,0.104132,96032.0,96025.0,0.072897]
[1732464883643,0.04437279,96034.0,96025.0,0.072897]
[1732464883863,0.04312023,96034.0,96025.0,0.072897]
[1732464884083,0.04312023,96034.0,96025.0,0.072896]
[1732464884291,0.104132,96032.0,96026.0,0.072896]
[1732464884785,0.00045984,96034.0,96026.0,0.072896]
[1732464885010,0.00045984,96034.0,96029.0,0.072894]
[1732464885234,0.10458984,96034.0,96027.0,0.072896]
[1732464885455,0.10458984,96034.0,96029.0,0.072894]
[1732464885456,0.00045984,96034.0,96029.0,0.072894]
[1732464885682,0.10458984,96034.0,96021.0,0.0729]
[1732464885915,0.10458984,96034.0,96028.0,0.072895]
[1732464886360,0.10413,96033.0,96027.0,0.072895]
[1732464886584,0.023,96032.0,96028.0,0.072895]
[1732464886833,0.00045984,96034.0,96019.0,0.0737572]
[1732464887066,0.023,96025.0,96019.0,0.0737572]
[1732464887296,0.023,96025.0,96021.0,0.0729]
[1732464887521,0.023,96025.0,96023.0,0.072899]
[1732464887738,0.023,96027.0,96023.0,0.072899]
[1732464887957,0.023,96027.0,96021.0,0.0729]
[1732464887958,0.023,96029.0,96024.0,0.072898]
[1732464888180,0.023,96029.0,96019.0,0.0008562]
[1732464888418,0.00045984,96034.0,96022.0,0.072899]
[1732464888661,0.00045984,96034.0,96019.0,0.0008562]
[1732464888662,0.00045984,96034.0,96025.0,0.072897]
[1732464888882,0.023,96031.0,96026.0,0.072896]
[1732464889097,0.00045984,96034.0,96026.0,0.072896]
[1732464889587,0.023,96032.0,96027.0,0.072895]
[1732464889805,0.023,96032.0,96019.0,0.0008562]
[1732464889806,0.023,96023.0,96019.0,0.0008562]
[1732464889997,0.023,96023.0,96020.0,0.072901]
[1732464890239,0.023,96029.0,96021.0,0.0729]
[1732464890460,0.023,96029.0,96025.0,0.072897]
[1732464892032,0.023,96029.0,96023.0,0.072898]
[1732464892033,0.023,96027.0,96023.0,0.072898]
[1732464892271,0.023,96027.0,96021.0,0.0737561]
[1732464892503,0.127138,96027.0,96022.0,0.072899]
[1732464892734,0.023,96026.0,96022.0,0.072899]
[1732464892965,0.104137,96027.0,96022.0,0.072899]
[1732464893188,0.023,96029.0,96021.0,0.0008561]
[1732464893412,0.023,96026.0,96021.0,0.0008561]
[1732464893631,0.023,96024.0,96021.0,0.0008561]
[1732464893873,0.023,96022.0,96021.0,0.0008561]
[1732464894333,0.10414,96024.0,96021.0,0.0008561]
[1732464894577,0.20828,96025.0,96021.0,0.0008561]
[1732464894813,0.104142,96022.0,96021.0,0.0008561]
[1732464895039,0.023,96022.0,96021.0,0.0008561]
[1732464895502,0.023,96023.0,96021.0,0.0008561]
[1732464895734,0.208281,96025.0,96021.0,0.0008561]
[1732464895927,0.023,96024.0,96021.0,0.0008561]
[1732464896197,0.127142,96022.0,96021.0,0.0008561]
[1732464896409,0.023,96022.0,96021.0,0.0008561]
[1732464897499,0.127142,96022.0,96021.0,0.0008561]
[1732464897939,0.253242,96022.0,96021.0,0.0008561]
[1732464899979,0.35525627,96022.0,96021.0,0.0008561]
[1732464900444,0.35525627,96022.0,96004.0,0.41284998]
[1732464900445,0.25111427,96022.0,96004.0,0.41284998]
[1732464900655,0.25111427,96022.0,95996.0,0.0008565]
[1732464900656,0.104166,96000.0,95999.0,0.41284998]
[1732464900869,0.104166,96000.0,95996.0,0.0008565]
[1732464900870,0.104169,95997.0,95996.0,0.0008565]
[1732464901123,0.20618327,95997.0,95996.0,0.0008565]
[1732464901558,0.20832,96006.0,95996.0,0.0008565]
[1732464901559,0.10416,96006.0,95996.0,0.0008565]
[1732464901801,0.042189,96011.0,96008.0,0.07291]
[1732464902023,0.208279,96025.0,95997.0,0.15]
[1732464902326,0.104142,96022.0,96021.0,0.0008561]
[1732464903393,0.127142,96022.0,96021.0,0.0008561]
[1732464904309,0.023,96024.0,96021.0,0.0737561]
[1732464904527,0.208257,96035.0,96024.0,0.072898]
[1732464904528,0.0767,96035.0,96024.0,0.072898]
[1732464904771,0.0767,96035.0,96021.0,0.0008561]
[1732464904772,0.0767,96035.0,96022.0,0.072899]
[1732464905051,0.2,96053.0,96021.0,0.0008561]
[1732464905052,0.0767,96044.0,96033.0,0.072891]
[1732464905291,0.104115,96048.0,96033.0,0.072891]
[1732464905530,0.07974405,96051.0,96033.0,0.07393217]
[1732464907099,0.1463049,96060.0,96033.0,0.07393217]
[1732464907340,0.0785,96061.0,96033.0,0.17594634]
[1732464907566,0.0998049,96060.0,96033.0,0.17490527]
[1732464907774,0.0211551,96044.0,96033.0,0.17490527]
[1732464908214,0.0998049,96060.0,96033.0,0.17594635]
[1732464908653,0.2039059,96060.0,96033.0,0.17490527]
[1732464908887,0.0998049,96060.0,96033.0,0.17490527]
[1732464909103,0.104112,96051.0,96033.0,0.17490527]
[1732464909317,0.104107,96055.0,96033.0,0.17490527]
[1732464909538,0.208207,96058.0,96033.0,0.17490527]
[1732464909539,0.104105,96057.0,96033.0,0.17490527]
[1732464909751,0.3080089,96060.0,96033.0,0.17490527]
[1732464909973,0.0785,96061.0,96052.0,0.072876]
[1732464910204,0.2039069,96060.0,96054.0,0.072875]
[1732464910411,0.2039069,96060.0,96046.0,0.07288]
[1732464910412,0.208205,96059.0,96046.0,0.48608015]
[1732464910619,0.104107,96055.0,96045.0,0.41320015]
[1732464910834,0.104102,96059.0,96051.0,0.072877]
[1732464911058,0.2039069,96060.0,96054.0,0.072875]
[1732464911267,0.0998049,96060.0,96056.0,0.072873]
[1732464911481,0.0998049,96060.0,96054.0,0.14575]
[1732464911482,0.2039059,96060.0,96054.0,0.14575]
[1732464911691,0.2039059,96060.0,96054.0,0.072875]
[1732464911915,0.104102,96059.0,96053.0,0.072875]
[1732464912346,0.2039069,96060.0,96053.0,0.072875]
[1732464912561,0.2039069,96060.0,96053.0,0.145751]
[1732464912562,0.104103,96059.0,96053.0,0.145751]
[1732464912807,0.0998049,96060.0,96053.0,0.145751]
[1732464912808,0.0998049,96060.0,96055.0,0.072874]
[1732464913035,0.0998049,96060.0,96053.0,0.072875]
[1732464913257,0.104102,96059.0,96053.0,0.14575]
[1732464913465,0.104102,96059.0,96054.0,0.072875]
[1732464913909,0.1015173,96060.0,96054.0,0.072875]
[1732464913910,0.2056193,96060.0,96054.0,0.072875]
[1732464914380,0.2056193,96060.0,96053.0,0.072875]
[1732464914381,0.104102,96059.0,96053.0,0.072875]
[1732464914602,0.1015173,96060.0,96053.0,0.072875]
[1732464914805,0.2056183,96060.0,96053.0,0.072875]
[1732464915050,0.104107,96056.0,96051.0,0.072877]
[1732464915275,0.1015173,96060.0,96053.0,0.072875]
[1732464915480,0.2056193,96060.0,96054.0,0.072874]
[1732464915694,0.104102,96059.0,96054.0,0.072874]
[1732464915910,0.104106,96056.0,96050.0,0.072878]
[1732464916128,0.104106,96056.0,96043.0,0.072884]
[1732464916346,0.1015173,96060.0,96042.0,0.41303716]
[1732464916574,0.104103,96059.0,96053.0,0.072875]
[1732464916784,0.1015173,96060.0,96053.0,0.072875]
[1732464916785,0.104103,96058.0,96053.0,0.072875]
[1732464917208,0.104105,96057.0,96050.0,0.072878]
[1732464917418,0.104114,96049.0,96043.0,0.072883]
[1732464917677,0.10411,96052.0,96047.0,0.07288]
[1732464917912,0.10201427,96056.0,96026.0,0.0815]
[1732464917913,0.10201427,96056.0,96053.0,0.072876]
[1732464918138,0.104104,96058.0,96053.0,0.072876]
[1732464918342,0.1015173,96060.0,96038.0,0.41303716]
[1732464918558,0.1015173,96060.0,96027.0,0.30201427]
[1732464918559,0.1015173,96060.0,96040.0,0.41303716]
[1732464918806,0.0017124,96060.0,96056.0,0.072874]
[1732464919041,0.0017124,96060.0,96059.0,0.072871]
[1732464920438,0.0017124,96060.0,96059.0,0.07391191]
[1732464921085,0.0017124,96060.0,96059.0,0.072871]
[1732464921345,0.0017124,96060.0,96059.0,0.07391191]
[1732464922214,0.1058134,96060.0,96054.0,0.072875]
[1732464922438,0.1058134,96060.0,96036.0,0.0816]
[1732464922439,0.104103,96059.0,96053.0,0.072876]
[1732464922689,0.0017124,96060.0,96058.0,0.072872]
[1732464922895,0.0017124,96060.0,96050.0,0.072878]
[1732464922896,0.104106,96056.0,96050.0,0.072878]
[1732464923125,0.1058144,96060.0,96055.0,0.072874]
[1732464923530,0.04336025,96060.0,96053.0,0.145751]
[1732464923766,0.14746225,96060.0,96054.0,0.072875]
[1732464923970,0.104103,96058.0,96053.0,0.072875]
[1732464924214,0.14746225,96060.0,96054.0,0.072875]
[1732464924423,0.04336025,96060.0,96054.0,0.072875]
[1732464924633,0.04336025,96060.0,96056.0,0.072874]
[1732464924863,0.04155107,96060.0,96055.0,0.072874]
[1732464925070,0.0802,96063.0,96060.0,0.07287]
[1732464925282,0.0432648,96063.0,96057.0,0.072872]
[1732464925505,0.104097,96064.0,96058.0,0.072872]
[1732464925711,0.254087,96068.0,96058.0,0.072872]
[1732464925712,0.104098,96063.0,96058.0,0.072872]
[1732464925920,0.104101,96060.0,96054.0,0.072875]
[1732464926127,0.0017124,96060.0,96045.0,0.05]
[1732464926588,0.0017124,96060.0,96052.0,0.072876]
[1732464926796,0.1058144,96060.0,96055.0,0.072874]
[1732464927012,0.0017124,96060.0,96057.0,0.072873]
[1732464927220,0.0017124,96060.0,96055.0,0.072874]
[1732464927433,0.0017124,96060.0,96052.0,0.072876]
[1732464927616,0.0017124,96060.0,96056.0,0.072873]
[1732464928347,0.023,96059.0,96056.0,0.145746]
[1732464928559,0.104104,96058.0,96050.0,0.072878]
[1732464928768,0.104108,96054.0,96047.0,0.07288]
[1732464928974,0.023,96053.0,96049.0,0.072879]
[1732464929185,0.023,96056.0,96045.0,0.05]
[1732464929414,0.023,96048.0,96045.0,0.05]
[1732464929866,0.127111,96051.0,96045.0,0.122882]
[1732464930091,0.127111,96051.0,96046.0,0.072881]
[1732464930302,0.023,96051.0,96047.0,0.07288]
[1732464930546,0.023,96051.0,96045.0,0.05]
[1732464930988,0.023,96051.0,96047.0,0.07288]
[1732464931212,0.023,96056.0,96054.0,0.072875]
[1732464931680,0.023,96056.0,96052.0,0.072876]
[1732464932148,0.023,96056.0,96053.0,0.072876]
[1732464932802,0.023,96056.0,96054.0,0.072874]
[1732464933020,0.023,96056.0,96055.0,0.072874]
[1732464933253,0.023,96056.0,96053.0,0.072876]
[1732464933457,0.127106,96056.0,96050.0,0.072878]
[1732464933674,0.023,96056.0,96051.0,0.072877]
[1732464934316,0.023,96056.0,96052.0,0.072876]
[1732464934765,0.023,96056.0,96054.0,0.072875]
[1732464934977,0.023,96056.0,96053.0,0.072875]